[Event "British KO-ch Pre 2019"]
[Site "London"]
[Date "2019.11.30"]
[Round "2.1"]
[White "Fernandez, Daniel Howard"]
[Black "Harvey, Marcus R"]
[Result "0-1"]
[ECO "A30"]
[WhiteElo "2444"]
[BlackElo "2405"]
[Annotator "ChessBase"]
[PlyCount "102"]
[EventDate "2019.11.30"]
[EventType "k.o."]
[EventCountry "ENG"]
[SourceTitle "playchess.com"]
[Source "ChessBase"]
[SourceQuality "1"]
[TimeControl "600+5"]

1. b3 {[%emt 0:00:15]} Nf6 {[%emt 0:00:00]} 2. Bb2 {[%emt 0:00:08]} g6 {[%emt 0:00:00]} 3. c4 {[%emt 0:00:37]} Bg7 {[%emt 0:00:00]} 4. Nf3 {[%emt 0:00:02]} O-O {[%emt 0:00:01]} 5. g3 {[%emt 0:00:19]} b6 {[%emt 0:00:41]} 6. Bg2 {[%emt 0:00:03]} Bb7 {[%emt 0:00:00]} 7. O-O {[%emt 0:00:03]} c5 {[%emt 0:00:11]} 8. Nc3 {[%emt 0:00:53]} d5 {[%emt 0:00:20]} 9. cxd5 {[%emt 0:00:03]} Nxd5 {[%emt 0:00:02]} 10. Qc1 {[%emt 0:00:07]} Nd7 {[%emt 0:01:40]} 11. Nxd5 {[%emt 0:00:18]} Bxd5 {[%emt 0:00:01]} 12. Bxg7 {[%emt 0:00:03]} Kxg7 {[%emt 0:00:01]} 13. a3 {[%emt 0:00:01]} Bxf3 {[%emt 0:00:39]} 14. Bxf3 {[%emt 0:00:04]} Rc8 {[%emt 0:00:01]} 15. b4 {[%emt 0:00:35]} Ne5 {[%emt 0:00:08]} 16. Bb7 {[%emt 0:00:37]} Rc7 {[%emt 0:00:03]} 17. Bg2 {[%emt 0:00:06]} Qd6 {[%emt 0:00:21]} 18. Qb2 {[%emt 0:00:26]} Qd4 {[%emt 0:00:09]} 19. Rab1 {[%emt 0:00:30]} Nc4 {[%emt 0:00:26]} 20. Qxd4+ {[%emt 0:01:28]} cxd4 {[%emt 0:00:01]} 21. Bd5 {[%emt 0:00:23]} Nxd2 {[%emt 0:01:01]} 22. Rfc1 {[%emt 0:00:03]} Rfc8 {[%emt 0:00:10]} 23. Rxc7 {[%emt 0:00:02]} Rxc7 {[%emt 0:00:01]} 24. Rb2 {[%emt 0:00:01]} Rc1+ {[%emt 0:00:01]} 25. Kg2 {[%emt 0:00:01]} Nc4 {[%emt 0:00:01]} 26. Rb3 {[%emt 0:00:36]} e6 {[%emt 0:00:13]} 27. Bxc4 {[%emt 0:00:23]} Rxc4 {[%emt 0:00:01]} 28. Kf3 {[%emt 0:00:04]} f5 {[%emt 0:00:01]} 29. e3 {[%emt 0:00:09]} dxe3 {[%emt 0:00:28]} 30. Kxe3 {[%emt 0:00:06]} Kf6 {[%emt 0:00:03]} 31. Rd3 {[%emt 0:00:02]} Ke7 {[%emt 0:00:07]} 32. f4 {[%emt 0:00:09]} h6 {[%emt 0:00:16]} 33. h3 {[%emt 0:00:22]} g5 {[%emt 0:00:02]} 34. Kf3 {[%emt 0:00:02]} a5 {[%emt 0:00:13]} 35. bxa5 {[%emt 0:00:11]} bxa5 {[%emt 0:00:02]} 36. Rb3 {[%emt 0:00:04]} a4 {[%emt 0:00:03]} 37. Rb7+ {[%emt 0:00:15]} Kf6 {[%emt 0:00:01]} 38. Rh7 {[%emt 0:00:01]} Rc3+ {[%emt 0:00:04]} 39. Kg2 {[%emt 0:00:02]} gxf4 {[%emt 0:00:10]} 40. gxf4 {[%emt 0:00:01]} Rxa3 {[%emt 0:00:27]} 41. Rxh6+ {[%emt 0:00:01]} Kf7 42. Rh7+ {[%emt 0:00:07]} Kg6 {[%emt 0:00:01]} 43. Re7 {[%emt 0:00:17]} Kf6 {[%emt 0:00:02]} 44. Ra7 {[%emt 0:00:03]} Ra1 {[%emt 0:00:08]} 45. h4 {[%emt 0:00:10]} Kg6 {[%emt 0:01:07]} 46. Re7 {[%emt 0:00:02]} a3 {[%emt 0:00:05]} 47. Rxe6+ {[%emt 0:00:23]} Kh5 {[%emt 0:00:01]} 48. Ra6 {[%emt 0:00:05]} Kg4 {[%emt 0:00:21]} 49. Ra5 {[%emt 0:00:20]} Ra2+ {[%emt 0:00:07]} 50. Kf1 {[%emt 0:00:08]} Kxh4 {[%emt 0:00:13]} 51. Rxf5 {[%emt 0:00:26]} Rb2 {[%emt 0:00:11]} 0-1

[Event "British KO-ch Pre 2019"]
[Site "London"]
[Date "2019.11.30"]
[Round "2.2"]
[White "Horton, Andrew P"]
[Black "Clarke, Brandon G I"]
[Result "1-0"]
[ECO "A26"]
[WhiteElo "2378"]
[BlackElo "2431"]
[Annotator "NA"]
[PlyCount "71"]
[EventDate "2019.11.30"]
[EventType "k.o."]
[EventCountry "ENG"]
[SourceTitle "playchess.com"]
[Source "ChessBase"]
[SourceQuality "1"]
[TimeControl "600+5"]

1. Nf3 {[%emt 0:00:00]} Nf6 {[%emt 0:00:00]} 2. c4 {[%emt 0:00:00]} g6 {[%emt 0:00:00]} 3. g3 {[%emt 0:00:00]} Bg7 {[%emt 0:00:00]} 4. Bg2 {[%emt 0:00:01]} O-O {[%emt 0:00:00]} 5. O-O {[%emt 0:00:03]} d6 {[%emt 0:00:00]} 6. Nc3 {[%emt 0:00:01]} e5 {[%emt 0:00:01]} 7. d3 {[%emt 0:00:02]} Nc6 {[%emt 0:00:01]} 8. Rb1 {[%emt 0:00:02]} a5 {[%emt 0:00:01]} 9. a3 {[%emt 0:00:00]} Nd4 {[%emt 0:00:01]} 10. Nxd4 {[%emt 0:01:17]} exd4 {[%emt 0:00:01]} 11. Nb5 {[%emt 0:00:02]} Ng4 {[%emt 0:00:09]} 12. h3 {[%emt 0:00:28]} c6 {[%emt 0:00:01]} 13. hxg4 {[%emt 0:00:05]} Bxg4 {[%emt 0:00:02]} 14. Nxd4 {[%emt 0:02:40]} Bxd4 {[%emt 0:00:02]} 15. Qc2 {[%emt 0:00:42]} h5 {[%emt 0:01:06]} 16. e3 {[%emt 0:00:32]} Bg7 {[%emt 0:00:37]} 17. Bd2 {[%emt 0:00:49]} h4 {[%emt 0:00:32]} 18. Bc3 {[%emt 0:00:32]} Bh6 {[%emt 0:00:20]} 19. Rbe1 {[%emt 0:00:32]} Re8 {[%emt 0:00:15]} 20. gxh4 {[%emt 0:00:40]} Qxh4 {[%emt 0:00:04]} 21. f4 {[%emt 0:00:06]} Bg7 {[%emt 0:02:07]} 22. Qf2 {[%emt 0:00:20]} Qh5 {[%emt 0:01:24]} 23. Bf3 {[%emt 0:00:59]} Bxc3 {[%emt 0:01:13]} 24. bxc3 {[%emt 0:00:01]} Kg7 {[%emt 0:00:00]} 25. Bxg4 {[%emt 0:00:22]} Qxg4+ {[%emt 0:00:01]} 26. Qg2 {[%emt 0:00:01]} Qf5 {[%emt 0:00:32]} 27. e4 {[%emt 0:00:29]} Qc5+ {[%emt 0:00:02]} 28. Qf2 {[%emt 0:00:30]} Qxa3 {[%emt 0:01:38]} 29. f5 {[%emt 0:00:02]} Qxc3 {[%emt 0:01:17]} 30. fxg6 {[%emt 0:00:16]} f6 {[%emt 0:00:23]} 31. e5 {[%emt 0:00:10]} f5 {[%emt 0:00:21]} 32. Qxf5 {[%emt 0:00:20]} Qd4+ {[%emt 0:00:02]} 33. Kg2 {[%emt 0:00:05]} Rf8 {[%emt 0:00:12]} 34. Qd7+ {[%emt 0:00:06]} Kxg6 {[%emt 0:00:02]} 35. Re4 {[%emt 0:00:15]} Qb2+ {[%emt 0:00:12]} 36. Kg3 {[%emt 0:00:15]} 1-0

[Event "British KO-ch Pre 2019"]
[Site "London"]
[Date "2019.11.30"]
[Round "2.3"]
[White "Merry, Alan B"]
[Black "Golding, Alex"]
[Result "1/2-1/2"]
[ECO "A01"]
[WhiteElo "2426"]
[BlackElo "2306"]
[Annotator "NA"]
[PlyCount "117"]
[EventDate "2019.11.30"]
[EventType "k.o."]
[EventCountry "ENG"]
[SourceTitle "playchess.com"]
[Source "ChessBase"]
[SourceQuality "1"]
[TimeControl "600+5"]

1. b3 {[%emt 0:00:00]} e5 {[%emt 0:00:00]} 2. Bb2 {[%emt 0:00:00]} Nc6 {[%emt 0:00:00]} 3. e3 {[%emt 0:00:00]} d6 {[%emt 0:00:27]} 4. c4 {[%emt 0:00:26]} g6 {[%emt 0:00:03]} 5. Ne2 {[%emt 0:00:07]} Bg7 {[%emt 0:00:01]} 6. Nbc3 {[%emt 0:00:24]} Nge7 {[%emt 0:00:03]} 7. g3 {[%emt 0:00:20]} d5 {[%emt 0:00:34]} 8. cxd5 {[%emt 0:00:23]} Nxd5 {[%emt 0:00:02]} 9. a3 {[%emt 0:00:51]} O-O {[%emt 0:00:13]} 10. Bg2 {[%emt 0:00:02]} Be6 {[%emt 0:00:01]} 11. O-O {[%emt 0:00:02]} Nxc3 {[%emt 0:00:07]} 12. Nxc3 {[%emt 0:00:04]} Qd3 {[%emt 0:00:02]} 13. b4 {[%emt 0:01:04]} f5 {[%emt 0:00:19]} 14. Qb1 {[%emt 0:01:20]} Rad8 {[%emt 0:00:23]} 15. Rc1 {[%emt 0:01:24]} e4 {[%emt 0:00:12]} 16. Na4 {[%emt 0:01:06]} Qxb1 {[%emt 0:00:13]} 17. Raxb1 {[%emt 0:00:02]} Rxd2 {[%emt 0:00:42]} 18. Bxg7 {[%emt 0:00:02]} Kxg7 {[%emt 0:00:02]} 19. b5 {[%emt 0:00:04]} Ne5 {[%emt 0:00:04]} 20. Rxc7+ {[%emt 0:00:08]} Rf7 {[%emt 0:00:05]} 21. Nc5 {[%emt 0:00:20]} Bd5 {[%emt 0:00:18]} 22. Rxf7+ {[%emt 0:00:31]} Kxf7 {[%emt 0:00:02]} 23. Rc1 {[%emt 0:00:49]} Kf6 {[%emt 0:00:16]} 24. h3 {[%emt 0:00:13]} b6 {[%emt 0:00:43]} 25. Na6 {[%emt 0:00:18]} Bc4 {[%emt 0:00:24]} 26. a4 {[%emt 0:00:26]} Ra2 {[%emt 0:00:11]} 27. Bf1 {[%emt 0:00:41]} Bxf1 {[%emt 0:00:03]} 28. Kxf1 {[%emt 0:00:09]} Rxf2+ {[%emt 0:00:11]} 29. Kxf2 {[%emt 0:00:02]} Nd3+ {[%emt 0:00:01]} 30. Kf1 {[%emt 0:00:08]} Nxc1 {[%emt 0:00:02]} 31. Nb4 {[%emt 0:00:10]} Nd3 {[%emt 0:00:06]} 32. Nc6 {[%emt 0:00:08]} Nc5 {[%emt 0:00:10]} 33. a5 {[%emt 0:00:04]} bxa5 {[%emt 0:00:13]} 34. Nxa5 {[%emt 0:00:01]} Ne6 {[%emt 0:00:19]} 35. Nc6 {[%emt 0:00:05]} Nc7 {[%emt 0:00:03]} 36. Nxa7 {[%emt 0:00:01]} Nd5 {[%emt 0:00:01]} 37. Ke2 {[%emt 0:00:30]} Ke6 {[%emt 0:00:10]} 38. Kd2 {[%emt 0:00:06]} Kd6 {[%emt 0:00:04]} 39. Nc6 {[%emt 0:00:06]} Kc5 {[%emt 0:00:22]} 40. Nd4 {[%emt 0:00:01]} Nc7 {[%emt 0:00:13]} 41. h4 {[%emt 0:00:20]} Nxb5 {[%emt 0:00:12]} 42. Ne6+ {[%emt 0:00:01]} Kd5 {[%emt 0:00:03]} 43. Nf8 {[%emt 0:00:01]} Nc7 {[%emt 0:00:04]} 44. Nxh7 {[%emt 0:00:02]} Ne6 {[%emt 0:00:16]} 45. Kc3 {[%emt 0:00:02]} Ke5 {[%emt 0:00:17]} 46. Kc4 {[%emt 0:00:05]} Ng7 {[%emt 0:00:03]} 47. Nf8 {[%emt 0:00:15]} Kf6 {[%emt 0:00:04]} 48. Nd7+ {[%emt 0:00:10]} Ke6 {[%emt 0:00:03]} 49. Nc5+ {[%emt 0:00:13]} Ke5 {[%emt 0:00:35]} 50. Nd7+ {[%emt 0:00:01]} Ke6 {[%emt 0:00:08]} 51. Nc5+ {[%emt 0:00:01]} Kd6 {[%emt 0:00:15]} 52. Kd4 {[%emt 0:00:17]} Nh5 {[%emt 0:00:31]} 53. g4 {[%emt 0:00:02]} Ng3 {[%emt 0:00:10]} 54. gxf5 {[%emt 0:00:09]} Nxf5+ {[%emt 0:00:04]} 55. Kxe4 {[%emt 0:00:07]} Kxc5 {[%emt 0:00:32]} 56. h5 {[%emt 0:00:00]} Ng3+ {[%emt 0:00:01]} 57. Kf4 {[%emt 0:00:02]} Nxh5+ {[%emt 0:00:03]} 58. Kg5 {[%emt 0:00:01]} Ng3 {[%emt 0:00:02]} 59. Kxg6 {[%emt 0:00:01]} 1/2-1/2

[Event "British KO-ch Pre 2019"]
[Site "London"]
[Date "2019.11.30"]
[Round "2.4"]
[White "Head, Louise"]
[Black "Haria, Ravi"]
[Result "0-1"]
[ECO "A40"]
[WhiteElo "2100"]
[BlackElo "2451"]
[Annotator "ChessBase"]
[PlyCount "40"]
[EventDate "2019.11.30"]
[EventType "k.o."]
[EventCountry "ENG"]
[SourceTitle "playchess.com"]
[Source "ChessBase"]
[SourceQuality "1"]
[TimeControl "600+5"]

1. d4 {[%emt 0:00:00]} e6 {[%emt 0:00:00]} 2. c4 {[%emt 0:00:00]} Bb4+ {[%emt 0:00:08]} 3. Nd2 {[%emt 0:00:08]} b6 {[%emt 0:00:04]} 4. Ngf3 {[%emt 0:00:09]} Bb7 {[%emt 0:00:04]} 5. a3 {[%emt 0:00:05]} Bxd2+ {[%emt 0:00:03]} 6. Qxd2 {[%emt 0:00:12]} f5 {[%emt 0:00:08]} 7. e3 {[%emt 0:01:04]} Nf6 {[%emt 0:00:02]} 8. Be2 {[%emt 0:00:42]} O-O {[%emt 0:00:24]} 9. O-O {[%emt 0:00:14]} a5 {[%emt 0:00:02]} 10. b3 {[%emt 0:00:15]} Qe7 {[%emt 0:00:05]} 11. Bb2 {[%emt 0:00:17]} d6 {[%emt 0:00:06]} 12. Rfd1 {[%emt 0:00:21]} Nbd7 {[%emt 0:00:03]} 13. Ne1 {[%emt 0:00:38]} Ne4 {[%emt 0:00:21]} 14. Qd3 {[%emt 0:00:05]} Qh4 {[%emt 0:01:15]} 15. g3 {[%emt 0:00:04]} Qh6 {[%emt 0:00:07]} 16. f4 {[%emt 0:00:42]} Nxg3 {[%emt 0:00:46]} 17. hxg3 {[%emt 0:02:16]} Qh1+ {[%emt 0:00:02]} 18. Kf2 {[%emt 0:00:01]} Nf6 {[%emt 0:00:01]} 19. Bf3 {[%emt 0:00:39]} Bxf3 {[%emt 0:00:08]} 20. Nxf3 {[%emt 0:00:07]} Ng4+ {[%emt 0:00:02]} 0-1

[Event "British KO-ch Pre 2019"]
[Site "London"]
[Date "2019.11.30"]
[Round "2.6"]
[White "Willow, Jonah B"]
[Black "Toma, Katarzyna"]
[Result "1-0"]
[ECO "B38"]
[WhiteElo "2345"]
[BlackElo "2272"]
[Annotator "NA"]
[PlyCount "121"]
[EventDate "2019.11.30"]
[EventType "k.o."]
[EventCountry "ENG"]
[SourceTitle "playchess.com"]
[Source "ChessBase"]
[SourceQuality "1"]
[TimeControl "600+5"]

1. e4 {[%emt 0:00:00]} c5 {[%emt 0:00:00]} 2. Nf3 {[%emt 0:00:00]} Nc6 {[%emt 0:00:00]} 3. d4 {[%emt 0:00:02]} cxd4 {[%emt 0:00:00]} 4. Nxd4 {[%emt 0:00:02]} g6 {[%emt 0:00:00]} 5. c4 {[%emt 0:00:04]} Bg7 {[%emt 0:00:00]} 6. Be3 {[%emt 0:00:02]} Nf6 {[%emt 0:00:05]} 7. Nc3 {[%emt 0:00:03]} d6 {[%emt 0:00:00]} 8. Be2 {[%emt 0:00:06]} a5 {[%emt 0:00:04]} 9. O-O {[%emt 0:00:27]} O-O {[%emt 0:01:12]} 10. f3 {[%emt 0:00:04]} Nd7 {[%emt 0:00:11]} 11. Ndb5 {[%emt 0:01:16]} Nc5 {[%emt 0:00:37]} 12. Qd2 {[%emt 0:00:55]} a4 {[%emt 0:00:15]} 13. Rab1 {[%emt 0:00:18]} Qa5 {[%emt 0:00:52]} 14. Rfd1 {[%emt 0:02:18]} Be6 {[%emt 0:01:30]} 15. Nd5 {[%emt 0:00:30]} Qxd2 {[%emt 0:00:32]} 16. Rxd2 {[%emt 0:00:06]} Bxd5 {[%emt 0:01:17]} 17. cxd5 {[%emt 0:00:22]} Nb4 {[%emt 0:00:05]} 18. Bxc5 {[%emt 0:01:03]} dxc5 {[%emt 0:00:01]} 19. a3 {[%emt 0:00:01]} Na6 {[%emt 0:00:05]} 20. f4 {[%emt 0:00:16]} Rfd8 {[%emt 0:00:17]} 21. Bc4 {[%emt 0:00:15]} Kf8 {[%emt 0:00:13]} 22. e5 {[%emt 0:00:12]} g5 {[%emt 0:01:35]} 23. g3 {[%emt 0:00:04]} Rac8 {[%emt 0:01:15]} 24. Rbd1 {[%emt 0:00:10]} Nc7 {[%emt 0:00:21]} 25. Nc3 {[%emt 0:00:01]} Ra8 {[%emt 0:00:04]} 26. Kg2 {[%emt 0:00:31]} Ra5 {[%emt 0:00:05]} 27. d6 exd6 {[%emt 0:00:01]} 28. exd6 {[%emt 0:01:20]} Ne6 {[%emt 0:00:19]} 29. Bxe6 {[%emt 0:00:29]} fxe6 {[%emt 0:00:01]} 30. fxg5 {[%emt 0:00:01]} Bd4 {[%emt 0:00:00]} 31. Ne4 {[%emt 0:00:26]} Rb5 {[%emt 0:00:04]} 32. Rf1+ {[%emt 0:00:41]} Kg7 {[%emt 0:00:02]} 33. Nc3 {[%emt 0:00:05]} Ra5 {[%emt 0:00:03]} 34. Ne4 {[%emt 0:00:07]} Rb5 {[%emt 0:00:04]} 35. h4 {[%emt 0:00:09]} b6 {[%emt 0:00:00]} 36. Nc3 {[%emt 0:00:08]} Ra5 {[%emt 0:00:02]} 37. Ne4 {[%emt 0:00:09]} Rb5 {[%emt 0:00:00]} 38. Nc3 {[%emt 0:00:10]} Rb3 {[%emt 0:00:21]} 39. Nxa4 {[%emt 0:00:11]} Rxd6 {[%emt 0:00:02]} 40. Nc3 {[%emt 0:00:00]} Rd8 {[%emt 0:00:27]} 41. h5 {[%emt 0:00:02]} Re8 {[%emt 0:00:23]} 42. Kh3 {[%emt 0:00:07]} Re7 {[%emt 0:00:12]} 43. Rf3 {[%emt 0:00:11]} b5 {[%emt 0:00:06]} 44. Kh4 {[%emt 0:00:06]} b4 {[%emt 0:00:07]} 45. axb4 Rxb4 {[%emt 0:00:01]} 46. g4 {[%emt 0:00:03]} Rb3 {[%emt 0:00:19]} 47. Re2 {[%emt 0:00:17]} Rf7 {[%emt 0:00:17]} 48. h6+ {[%emt 0:00:00]} Kf8 {[%emt 0:00:03]} 49. Rd3 {[%emt 0:00:01]} Ke7 {[%emt 0:00:05]} 50. Nd5+ {[%emt 0:00:03]} Kd6 {[%emt 0:00:06]} 51. Rxb3 {[%emt 0:00:01]} exd5 {[%emt 0:00:03]} 52. Rb6+ {[%emt 0:00:03]} Kc7 {[%emt 0:00:02]} 53. Ra6 {[%emt 0:00:04]} c4 {[%emt 0:00:07]} 54. g6 hxg6 {[%emt 0:00:02]} 55. Rxg6 {[%emt 0:00:06]} Bh8 {[%emt 0:00:32]} 56. Ra6 {[%emt 0:00:15]} Bd4 {[%emt 0:00:01]} 57. g5 {[%emt 0:00:06]} Kb7 {[%emt 0:00:08]} 58. Rd6 {[%emt 0:00:04]} Rf5 {[%emt 0:00:03]} 59. h7 {[%emt 0:00:13]} c3 {[%emt 0:00:09]} 60. bxc3 Bxc3 61. Re7+ {[%emt 0:00:07]} 1-0

[Event "British KO-ch Pre 2019"]
[Site "London"]
[Date "2019.11.30"]
[Round "2.7"]
[White "Taylor, Adam C"]
[Black "Claridge-Hansen, William"]
[Result "0-1"]
[ECO "A37"]
[WhiteElo "2371"]
[BlackElo "2290"]
[Annotator "NA"]
[PlyCount "220"]
[EventDate "2019.11.30"]
[EventType "k.o."]
[EventCountry "ENG"]
[SourceTitle "playchess.com"]
[Source "ChessBase"]
[SourceQuality "1"]
[TimeControl "600+5"]

1. Nf3 {[%emt 0:00:00]} c5 {[%emt 0:00:00]} 2. g3 {[%emt 0:00:01]} g6 {[%emt 0:00:01]} 3. Bg2 {[%emt 0:00:01]} Bg7 {[%emt 0:00:00]} 4. O-O {[%emt 0:00:02]} Nc6 {[%emt 0:00:03]} 5. c4 {[%emt 0:00:02]} d6 {[%emt 0:00:12]} 6. Nc3 {[%emt 0:00:11]} e5 {[%emt 0:00:02]} 7. Ne1 {[%emt 0:00:08]} Be6 {[%emt 0:00:05]} 8. Nd5 {[%emt 0:00:09]} Rb8 {[%emt 0:00:21]} 9. a4 {[%emt 0:00:06]} Nge7 {[%emt 0:00:10]} 10. Nc2 {[%emt 0:00:02]} O-O {[%emt 0:00:14]} 11. Rb1 {[%emt 0:00:10]} Qd7 {[%emt 0:02:02]} 12. b4 {[%emt 0:00:32]} b6 {[%emt 0:00:01]} 13. b5 {[%emt 0:00:36]} Nd4 {[%emt 0:00:41]} 14. Nxe7+ {[%emt 0:00:10]} Qxe7 {[%emt 0:00:02]} 15. Ne3 {[%emt 0:00:01]} Qd7 {[%emt 0:00:31]} 16. Nd5 {[%emt 0:00:14]} Bh3 {[%emt 0:00:54]} 17. e3 {[%emt 0:02:01]} Bxg2 {[%emt 0:00:03]} 18. Kxg2 {[%emt 0:00:01]} Ne6 {[%emt 0:00:32]} 19. f4 {[%emt 0:00:31]} f5 {[%emt 0:00:43]} 20. d3 {[%emt 0:00:46]} Nc7 {[%emt 0:00:33]} 21. Qf3 {[%emt 0:00:01]} Rbe8 {[%emt 0:00:34]} 22. a5 {[%emt 0:00:58]} e4 {[%emt 0:00:56]} 23. dxe4 {[%emt 0:01:00]} Rxe4 {[%emt 0:00:02]} 24. Rd1 {[%emt 0:00:05]} Rfe8 {[%emt 0:00:32]} 25. axb6 {[%emt 0:02:02]} Nxd5 {[%emt 0:00:05]} 26. Rxd5 {[%emt 0:00:05]} axb6 {[%emt 0:00:04]} 27. Qd1 {[%emt 0:01:02]} Rxc4 {[%emt 0:00:58]} 28. Rxd6 {[%emt 0:00:11]} Qb7+ {[%emt 0:00:14]} 29. Kh3 {[%emt 0:00:20]} Qe4 {[%emt 0:00:23]} 30. Rd7 {[%emt 0:00:51]} Rc2 {[%emt 0:00:38]} 31. Qd5+ {[%emt 0:00:08]} Qxd5 {[%emt 0:00:08]} 32. Rxd5 {[%emt 0:00:00]} Ra8 {[%emt 0:00:13]} 33. Rd2 {[%emt 0:00:04]} Raa2 {[%emt 0:00:22]} 34. Rxc2 {[%emt 0:00:10]} Rxc2 {[%emt 0:00:01]} 35. g4 {[%emt 0:00:01]} fxg4+ 36. Kxg4 {[%emt 0:00:01]} Rxh2 {[%emt 0:00:15]} 37. e4 {[%emt 0:00:04]} Rh1 {[%emt 0:00:12]} 38. e5 {[%emt 0:00:03]} Kf7 {[%emt 0:00:05]} 39. Ra1 {[%emt 0:00:16]} Bf8 {[%emt 0:00:13]} 40. Ra7+ {[%emt 0:00:04]} Ke6 {[%emt 0:00:01]} 41. Be3 {[%emt 0:00:04]} h5+ {[%emt 0:00:02]} 42. Kf3 h4 {[%emt 0:00:11]} 43. Rb7 {[%emt 0:00:02]} h3 {[%emt 0:00:10]} 44. Rxb6+ {[%emt 0:00:01]} Kd5 {[%emt 0:00:01]} 45. Rxg6 {[%emt 0:00:09]} h2 {[%emt 0:00:04]} 46. Kg2 {[%emt 0:00:12]} Re1 {[%emt 0:00:01]} 47. Kxh2 {[%emt 0:00:01]} Rxe3 {[%emt 0:00:02]} 48. Rf6 {[%emt 0:00:05]} Be7 {[%emt 0:00:01]} 49. Rf7 {[%emt 0:00:09]} Ke6 {[%emt 0:00:01]} 50. Rh7 {[%emt 0:00:02]} Bd8 {[%emt 0:00:12]} 51. b6 {[%emt 0:00:01]} Rb3 {[%emt 0:00:12]} 52. b7 {[%emt 0:00:04]} c4 {[%emt 0:00:07]} 53. Rh6+ {[%emt 0:00:01]} Kf5 {[%emt 0:00:03]} 54. Rd6 {[%emt 0:00:03]} Bc7 {[%emt 0:00:08]} 55. Rf6+ {[%emt 0:00:01]} Ke4 {[%emt 0:00:07]} 56. Rc6 {[%emt 0:00:03]} Rxb7 {[%emt 0:00:05]} 57. Rxc4+ {[%emt 0:00:02]} Kf5 {[%emt 0:00:02]} 58. Kg2 {[%emt 0:00:20]} Rb2+ {[%emt 0:00:01]} 59. Kf3 {[%emt 0:00:01]} Rb3+ {[%emt 0:00:01]} 60. Ke2 {[%emt 0:00:02]} Bb6 {[%emt 0:00:02]} 61. e6 {[%emt 0:00:05]} Re3+ {[%emt 0:00:01]} 62. Kd2 {[%emt 0:00:00]} Rxe6 {[%emt 0:00:02]} 63. Kc2 {[%emt 0:00:02]} Be3 {[%emt 0:00:04]} 64. Rc8 {[%emt 0:00:03]} Bxf4 {[%emt 0:00:03]} 65. Kd3 {[%emt 0:00:07]} Rd6+ {[%emt 0:00:02]} 66. Kc4 {[%emt 0:00:00]} Ke4 {[%emt 0:00:03]} 67. Kb5 {[%emt 0:00:01]} Be5 {[%emt 0:00:08]} 68. Rc1 {[%emt 0:00:06]} Kd5 {[%emt 0:00:02]} 69. Rd1+ {[%emt 0:00:02]} Bd4 {[%emt 0:00:01]} 70. Rc1 {[%emt 0:00:01]} Rb6+ {[%emt 0:00:01]} 71. Ka5 {[%emt 0:00:03]} Rb8 {[%emt 0:00:03]} 72. Rc2 {[%emt 0:00:05]} Rb1 {[%emt 0:00:08]} 73. Rc8 {[%emt 0:00:07]} Bc5 {[%emt 0:00:07]} 74. Rh8 {[%emt 0:00:04]} Kc6 {[%emt 0:00:05]} 75. Rc8+ {[%emt 0:00:13]} Kd5 {[%emt 0:00:06]} 76. Rh8 {[%emt 0:00:02]} Kc4 {[%emt 0:00:03]} 77. Rh4+ {[%emt 0:00:15]} Bd4 {[%emt 0:00:01]} 78. Ka6 {[%emt 0:00:06]} Rb6+ {[%emt 0:00:18]} 79. Ka5 {[%emt 0:00:00]} Rb8 {[%emt 0:00:18]} 80. Ka6 {[%emt 0:00:24]} Rb6+ {[%emt 0:00:01]} 81. Ka5 {[%emt 0:00:01]} Rb7 {[%emt 0:00:01]} 82. Rh6 {[%emt 0:00:01]} Kd5 {[%emt 0:00:20]} 83. Rh5+ {[%emt 0:00:07]} Be5 {[%emt 0:00:06]} 84. Rh1 {[%emt 0:00:08]} Bd6 {[%emt 0:00:05]} 85. Rc1 {[%emt 0:00:15]} Bc5 {[%emt 0:00:13]} 86. Rh1 {[%emt 0:00:04]} Rb2 {[%emt 0:00:01]} 87. Rh5+ {[%emt 0:00:03]} Kc6 {[%emt 0:00:02]} 88. Rh6+ {[%emt 0:00:05]} Bd6 {[%emt 0:00:00]} 89. Ka4 {[%emt 0:00:11]} Rb4+ {[%emt 0:00:02]} 90. Ka5 {[%emt 0:00:01]} Rg4 {[%emt 0:00:08]} 91. Rh5 {[%emt 0:00:11]} Rg3 {[%emt 0:00:01]} 92. Rh4 {[%emt 0:00:04]} Ra3+ {[%emt 0:00:06]} 93. Ra4 {[%emt 0:00:01]} Rh3 {[%emt 0:00:03]} 94. Rg4 {[%emt 0:00:06]} Rh8 {[%emt 0:00:00]} 95. Ka4 {[%emt 0:00:04]} Rh3 {[%emt 0:00:00]} 96. Ka5 {[%emt 0:00:06]} Be5 {[%emt 0:00:00]} 97. Rc4+ {[%emt 0:00:07]} Kd5 {[%emt 0:00:00]} 98. Rc1 {[%emt 0:00:06]} Rb3 {[%emt 0:00:00]} 99. Ka4 {[%emt 0:00:04]} Rb7 {[%emt 0:00:00]} 100. Rc8 {[%emt 0:00:01]} Bd4 {[%emt 0:00:00]} 101. Ka3 {[%emt 0:00:12]} Rh7 {[%emt 0:00:00]} 102. Rd8+ {[%emt 0:00:04]} Kc4 {[%emt 0:00:00]} 103. Rc8+ {[%emt 0:00:01]} Bc5+ {[%emt 0:00:00]} 104. Kb2 {[%emt 0:00:01]} Rh2+ {[%emt 0:00:00]} 105. Kc1 {[%emt 0:00:09]} Rg2 {[%emt 0:00:00]} 106. Rc7 {[%emt 0:00:07]} Kd4 {[%emt 0:00:01]} 107. Rh7 {[%emt 0:00:06]} Kd3 {[%emt 0:00:11]} 108. Kb1 {[%emt 0:00:08]} Rg1+ {[%emt 0:00:22]} 109. Ka2 {[%emt 0:00:04]} Bd4 {[%emt 0:00:01]} 110. Rh3+ {[%emt 0:00:05]} Kc4 {[%emt 0:00:08]} 0-1

[Event "British KO-ch Pre 2019"]
[Site "London"]
[Date "2019.11.30"]
[Round "2.8"]
[White "Wadsworth, Matthew J"]
[Black "Kalaiyalahan, Akshaya"]
[Result "1-0"]
[ECO "A26"]
[WhiteElo "2401"]
[BlackElo "2154"]
[Annotator "NA RC"]
[PlyCount "74"]
[EventDate "2019.11.30"]
[EventType "k.o."]
[EventCountry "ENG"]
[SourceTitle "playchess.com"]
[Source "ChessBase"]
[SourceQuality "1"]
[TimeControl "600+5"]

1. Nf3 {[%emt 0:00:00]} Nf6 {[%emt 0:00:00]} 2. g3 {[%emt 0:00:00]} g6 {[%emt 0:00:00]} 3. Bg2 {[%emt 0:00:02]} Bg7 {[%emt 0:00:00]} 4. c4 {[%emt 0:00:02]} O-O {[%emt 0:00:03]} 5. O-O {[%emt 0:00:02]} d6 {[%emt 0:00:01]} 6. Nc3 {[%emt 0:00:02]} Nc6 {[%emt 0:00:01]} 7. Rb1 {[%emt 0:00:02]} a5 {[%emt 0:00:05]} 8. d3 {[%emt 0:00:02]} e5 {[%emt 0:00:09]} 9. a3 {[%emt 0:00:01]} Re8 {[%emt 0:00:20]} 10. Bg5 {[%emt 0:00:39]} h6 {[%emt 0:02:34]} 11. Bxf6 {[%emt 0:00:02]} Bxf6 {[%emt 0:00:02]} 12. b4 {[%emt 0:00:15]} axb4 {[%emt 0:00:09]} 13. axb4 {[%emt 0:00:02]} Bg7 {[%emt 0:00:22]} 14. b5 {[%emt 0:01:27]} Nd4 {[%emt 0:00:30]} 15. e3 {[%emt 0:00:13]} Ne6 {[%emt 0:01:53]} 16. Nd2 {[%emt 0:01:14]} Nc5 {[%emt 0:00:43]} 17. Nb3 {[%emt 0:00:09]} Nxb3 {[%emt 0:00:34]} 18. Qxb3 {[%emt 0:00:03]} Bd7 {[%emt 0:00:41]} 19. Bxb7 {[%emt 0:00:13]} Rb8 {[%emt 0:00:01]} 20. Bg2 {[%emt 0:00:12]} Kh7 {[%emt 0:01:02]} 21. Qc2 {[%emt 0:00:15]} f5 {[%emt 0:00:07]} 22. Nd5 {[%emt 0:00:14]} Rf8 {[%emt 0:00:24]} 23. f4 {[%emt 0:00:29]} exf4 {[%emt 0:00:12]} 24. Nxf4 {[%emt 0:00:10]} Re8 {[%emt 0:00:34]} 25. Rbe1 {[%emt 0:00:23]} h5 {[%emt 0:00:15]} 26. h4 {[%emt 0:00:26]} Qc8 {[%emt 0:00:22]} 27. Qa4 {[%emt 0:01:30]} Qd8 {[%emt 0:00:41]} 28. Kh2 {[%emt 0:00:18]} Kh6 {[%emt 0:00:20]} 29. Nh3 {[%emt 0:00:23]} Bf6 {[%emt 0:00:09]} 30. Qc2 {[%emt 0:00:33]} Qc8 {[%emt 0:00:07]} 31. e4 {[%emt 0:00:33]} Be5 {[%emt 0:00:06]} 32. d4 {[%emt 0:00:11]} Bh8 {[%emt 0:00:07]} 33. Qd2+ {[%emt 0:00:05]} Kh7 {[%emt 0:00:02]} 34. Ng5+ {[%emt 0:00:08]} Kg8 {[%emt 0:00:01]} 35. e5 {[%emt 0:00:09]} dxe5 {[%emt 0:00:09]} 36. dxe5 {[%emt 0:00:02]} Bxe5 {[%emt 0:00:05]} 37. Qd5+ {[%emt 0:00:06]} Be6 {[%emt 0:00:10]} 1-0